bitfinex-derivatives/quotes_BNBF0:USTF0_20250908
["timestamp","ask_amount","ask_price","bid_price","bid_amount"]
[1757305913858,0.62914717,877.06,875.62,0.19823751]
[1757305914056,0.62914717,877.05,875.62,0.19823751]
[1757305914356,0.62914717,877.04,875.62,0.19823751]
[1757305914554,0.62914717,877.03,875.62,0.19823751]
[1757305914757,0.62914717,877.02,875.62,0.19823751]
[1757305914959,0.62914717,877.01,875.62,0.19823751]
[1757305915153,0.62914717,877.0,875.62,0.19823751]
[1757305915356,0.62914717,876.99,875.62,0.19823751]
[1757305915559,0.62914717,876.98,875.62,0.19823751]
[1757305915754,0.62914717,876.97,875.62,0.19823751]
[1757305915954,0.62914717,876.96,875.62,0.19823751]
[1757305916154,0.62914717,876.95,875.62,0.19823751]
[1757305916454,0.62914717,876.94,875.62,0.19823751]
[1757305916658,0.62914717,876.93,875.62,0.19823751]
[1757305916855,0.62914717,876.92,875.62,0.19823751]
[1757305917159,0.62914717,876.91,875.62,0.19823751]
[1757305917455,0.62914717,876.9,875.62,0.19823751]
[1757305917661,0.62914717,876.89,875.62,0.19823751]
[1757305917857,0.62914717,876.88,875.62,0.19823751]
[1757305918059,0.62914717,876.87,875.62,0.19823751]
[1757305918258,0.62914717,876.86,875.62,0.19823751]
[1757305918460,0.62914717,876.85,875.62,0.19823751]
[1757305918661,0.62914717,876.84,875.62,0.19823751]
[1757305918856,0.62914717,876.83,875.62,0.19823751]
[1757305919058,0.62914717,876.82,875.62,0.19823751]
[1757305919257,0.62914717,876.81,875.62,0.19823751]
[1757305919461,0.62914717,876.8,875.62,0.19823751]
[1757305919762,0.62914717,876.79,875.62,0.19823751]
[1757305919959,0.62914717,876.78,875.62,0.19823751]
[1757305920156,0.62914717,876.77,875.62,0.19823751]
[1757305920358,0.62914717,876.76,875.62,0.19823751]
[1757305920559,0.62914717,876.75,875.62,0.19823751]
[1757305920862,0.62914717,876.74,875.62,0.19823751]
[1757305921063,0.62914717,876.73,875.62,0.19823751]
[1757305921359,0.62914717,876.72,875.62,0.19823751]
[1757305921663,0.62914717,876.71,875.62,0.19823751]
[1757305921860,0.62914717,876.7,875.62,0.19823751]
[1757305922067,0.62914717,876.69,875.62,0.19823751]
[1757305922362,0.62914717,876.68,875.62,0.19823751]
[1757305922563,0.62914717,876.67,875.62,0.19823751]
[1757305922859,0.62914717,876.66,875.62,0.19823751]
[1757305923063,0.62914717,876.65,875.62,0.19823751]
[1757305923265,0.62914717,876.64,875.62,0.19823751]
[1757305923461,1.01288209,876.55,875.62,0.19823751]
[1757305923664,0.62914717,876.54,875.62,0.19823751]
[1757305923863,0.62914717,876.53,875.62,0.19823751]
[1757305924061,0.62914717,876.52,875.62,0.19823751]
[1757305924263,0.62914717,876.51,875.62,0.19823751]
[1757305924462,0.62914717,876.5,875.62,0.19823751]
[1757305924664,0.62914717,876.49,875.62,0.19823751]
[1757305924862,0.62914717,876.48,875.62,0.19823751]
[1757305925062,0.62914717,876.47,875.62,0.19823751]
[1757305925265,0.62914717,876.46,875.62,0.19823751]
[1757305925462,1.01288209,876.56,875.62,0.19823751]
[1757305925663,0.62905923,876.55,875.62,0.19823751]
[1757305925966,0.62905923,876.54,875.62,0.19823751]
[1757305926162,0.62905923,876.53,875.62,0.19823751]
[1757305926366,0.62905923,876.52,875.62,0.19823751]
[1757305926666,0.62905923,876.51,875.62,0.19823751]
[1757305926966,0.62905923,876.5,875.62,0.19823751]
[1757305927168,0.62905923,876.49,875.62,0.19823751]
[1757305927363,1.01288209,876.72,875.62,0.19823751]
[1757305927561,0.62900589,876.71,875.62,0.19823751]
[1757305927763,0.62900589,876.7,875.62,0.19823751]
[1757305927962,0.62900589,876.69,875.62,0.19823751]
[1757305928166,0.62900589,876.68,875.62,0.19823751]
[1757305928365,0.62900589,876.67,875.62,0.19823751]
[1757305928565,0.62900589,876.66,875.62,0.19823751]
[1757305928764,0.62900589,876.65,875.62,0.19823751]
[1757305928968,0.62900589,876.64,875.62,0.19823751]
[1757305929169,0.62900589,876.63,875.62,0.19823751]
[1757305929468,0.62900589,876.62,875.62,0.19823751]
[1757305929668,0.62900589,876.61,875.62,0.19823751]
[1757305929872,0.62900589,876.6,875.62,0.19823751]
[1757305930072,0.62900589,876.59,875.62,0.19823751]
[1757305930372,0.62900589,876.58,875.62,0.19823751]
[1757305930672,0.62900589,876.57,875.62,0.19823751]
[1757305930872,0.62900589,876.56,875.62,0.19823751]
[1757305931073,0.62900589,876.55,875.62,0.19823751]
[1757305931374,1.01288209,876.75,875.62,0.19823751]
[1757305931572,1.64164353,876.74,875.62,0.19823751]
[1757305931768,0.62876144,876.73,875.62,0.19823751]
[1757305931973,0.62876144,876.72,875.62,0.19823751]
[1757305932173,1.01288209,876.77,875.62,0.19823751]
[1757305932174,0.62876144,876.71,875.62,0.19823751]
[1757305932374,0.62876144,876.7,875.62,0.19823751]
[1757305932573,0.62876144,876.69,875.62,0.19823751]
[1757305932874,0.62876144,876.68,875.62,0.19823751]
[1757305933071,0.62876144,876.67,875.62,0.19823751]
[1757305933372,0.62876144,876.66,875.62,0.19823751]
[1757305933572,0.62876144,876.65,875.62,0.19823751]
[1757305933777,0.62876144,876.64,875.62,0.19823751]
[1757305933972,0.62876144,876.63,875.62,0.19823751]
[1757305934176,0.62876144,876.62,875.62,0.19823751]
[1757305934377,0.62876144,876.61,875.62,0.19823751]
[1757305934576,0.62876144,876.6,875.62,0.19823751]
[1757305934878,0.62876144,876.59,875.62,0.19823751]
[1757305935078,0.62876144,876.58,875.62,0.19823751]
[1757305935278,0.62876144,876.57,875.62,0.19823751]
[1757305935579,0.62876144,876.56,875.62,0.19823751]
[1757305935878,0.62876144,876.55,875.62,0.19823751]
[1757305936078,1.01288209,876.81,875.62,0.19823751]
[1757305936280,0.62853574,876.8,875.62,0.19823751]
[1757305936577,0.62853574,876.79,875.62,0.19823751]
[1757305936776,0.62853574,876.78,875.62,0.19823751]
[1757305936980,0.62853574,876.77,875.62,0.19823751]
[1757305937177,0.62853574,876.76,875.62,0.19823751]
[1757305937480,0.62853574,876.75,875.62,0.19823751]
[1757305937681,0.62853574,876.74,875.62,0.19823751]
[1757305937880,0.62853574,876.73,875.62,0.19823751]
[1757305938081,0.62853574,876.72,875.62,0.19823751]
[1757305938384,1.01288209,876.86,875.62,0.19823751]
[1757305938678,0.62892446,876.85,875.62,1.71641547]
[1757305938980,1.01288209,877.1,875.62,1.71641547]
[1757305938981,0.62892446,876.84,875.62,1.71641547]
[1757305939181,0.62892446,876.83,875.62,0.19823751]
[1757305939382,0.62892446,876.82,875.62,0.19823751]
[1757305939582,1.01288209,877.13,875.62,0.19823751]
[1757305939785,0.62851302,877.12,875.62,0.19823751]
[1757305939983,1.01288209,877.13,875.62,0.19823751]
[1757305939984,0.62851302,877.11,875.62,0.19823751]
[1757305940181,0.62851302,877.1,875.62,0.19823751]
[1757305940385,0.62851302,877.09,875.62,0.19823751]
[1757305940582,0.62851302,877.08,875.62,0.19823751]
[1757305940885,0.62851302,877.07,875.62,0.19823751]
[1757305941085,0.62851302,877.06,875.62,0.19823751]
[1757305941285,0.62851302,877.05,875.62,0.19823751]
[1757305941480,0.62851302,877.04,875.62,0.19823751]
[1757305941683,0.62851302,877.03,875.62,0.19823751]
[1757305941881,0.62851302,877.02,875.62,0.19823751]
[1757305942080,0.62851302,877.01,875.62,0.19823751]
[1757305942280,0.62851302,877.0,875.62,0.19823751]
[1757305942483,0.62851302,876.99,875.62,0.19823751]
[1757305942683,0.62851302,876.98,875.62,0.19823751]
[1757305942884,0.62851302,876.97,875.62,0.19823751]
[1757305943082,0.62851302,876.96,875.62,0.19823751]
[1757305943285,0.62851302,876.95,875.62,0.19823751]
[1757305943482,0.62851302,876.94,875.62,0.19823751]
[1757305943687,0.62851302,876.93,875.62,0.19823751]
[1757305943882,0.62851302,876.92,875.62,0.19823751]
[1757305944188,0.62851302,876.91,875.62,0.19823751]
[1757305944387,0.62851302,876.9,875.62,0.19823751]
[1757305944583,0.62851302,876.89,875.62,0.19823751]
[1757305944783,0.62851302,876.88,875.62,0.19823751]
[1757305945086,0.62851302,876.87,875.62,0.19823751]
[1757305945288,0.62851302,876.86,875.62,0.19823751]
[1757305945485,0.62851302,876.85,875.62,0.19823751]
[1757305945682,0.19816865,878.47,875.62,0.19823751]
[1757305945683,0.62851302,876.84,875.62,0.19823751]
[1757305945885,0.62851302,876.83,875.62,0.19823751]
[1757305946088,1.01288209,877.13,875.62,0.19823751]
[1757305946288,0.6273196,877.12,875.62,0.19823751]
[1757305946486,0.6273196,877.11,875.62,0.19823751]
[1757305946685,0.6273196,877.1,875.62,0.19823751]
[1757305946988,0.6273196,877.09,875.62,0.19823751]
[1757305947183,1.01288209,877.07,875.62,0.19823751]
[1757305947385,0.6273196,877.06,875.62,0.19823751]
[1757305947588,0.6273196,877.05,875.62,0.19823751]
[1757305947784,0.6273196,877.04,875.63,1.365]
[1757305947991,0.6273196,877.03,875.63,1.365]
[1757305948192,1.64020169,877.02,875.63,1.365]
[1757305948388,0.6273196,877.01,875.63,1.365]
[1757305948588,0.6273196,877.0,875.63,1.365]
[1757305948793,0.6273196,876.99,875.63,1.365]
[1757305949092,0.6273196,876.98,875.63,1.365]
[1757305949291,0.6273196,876.97,875.63,1.365]
[1757305949586,0.6273196,876.96,875.63,1.365]
[1757305949791,0.6273196,876.95,875.63,1.365]
[1757305949991,0.6273196,876.94,875.63,1.365]
[1757305950187,0.6273196,876.93,875.63,1.365]
[1757305950387,0.6273196,876.92,875.63,1.365]
[1757305950592,0.6273196,876.91,875.63,1.365]
[1757305950789,0.6273196,876.9,875.63,1.365]
[1757305951094,0.62690149,876.89,875.63,1.365]
[1757305951389,0.62690149,876.88,875.63,1.365]
[1757305951593,0.62690149,876.87,875.63,1.365]
[1757305951796,0.62690149,876.86,875.63,1.365]
[1757305951994,0.62690149,876.85,875.63,1.365]
[1757305952289,0.62690149,876.84,875.63,1.365]
[1757305952593,0.62690149,876.83,875.63,1.365]
[1757305952791,0.62690149,876.82,875.63,1.365]
[1757305953095,0.62690149,876.81,875.63,1.365]
[1757305953295,1.01288209,877.05,875.63,1.365]
[1757305953496,0.62668476,877.04,875.63,1.365]
[1757305953699,0.62668476,877.03,875.63,1.365]
[1757305953898,0.62668476,877.02,875.63,1.365]
[1757305954197,0.62668476,877.01,875.63,1.365]
[1757305954397,0.62668476,877.0,875.63,1.365]
[1757305954598,0.62668476,876.99,875.63,1.365]
[1757305954794,0.62668476,876.98,875.63,1.365]
[1757305954991,0.62668476,876.97,875.63,1.365]
[1757305955293,0.62668476,876.96,875.63,1.365]
[1757305955496,0.62668476,876.95,875.63,1.365]
[1757305955699,0.62668476,876.94,875.63,1.365]
[1757305955999,0.62668476,876.93,875.63,1.365]
[1757305956294,0.62668476,876.92,875.63,1.365]
[1757305956498,0.62668476,876.91,875.63,1.365]
[1757305956798,0.62668476,876.9,875.63,1.365]
[1757305957096,0.62668476,876.89,875.63,1.365]
[1757305957292,1.01288209,877.11,875.63,1.365]
[1757305957293,0.62668476,876.88,875.63,1.365]
[1757305957498,0.62668476,876.87,875.63,1.365]
[1757305957696,0.62668476,876.86,875.63,1.365]
[1757305957898,0.62668476,876.85,875.63,1.365]
[1757305958098,0.62668476,876.84,875.63,1.365]
[1757305958394,0.62668476,876.83,875.63,1.365]
[1757305958595,0.62668476,876.82,875.63,1.365]
[1757305958793,1.01288209,877.11,875.63,1.365]
[1757305958794,0.62668476,876.81,875.63,1.365]
[1757305959100,1.01288209,877.12,875.63,1.365]
[1757305959300,0.62654568,877.11,875.63,1.365]
[1757305959498,0.62654568,877.1,875.63,1.365]
[1757305959695,0.62654568,877.09,875.63,1.365]
[1757305959895,0.62654568,877.08,875.63,1.365]
[1757305960096,0.62654568,877.07,875.63,1.365]
[1757305960396,0.62654568,877.06,875.63,1.365]
[1757305960596,0.62654568,877.05,875.63,1.365]
[1757305960794,0.62654568,877.04,875.63,1.365]
[1757305960995,0.62654568,877.03,875.63,1.365]
[1757305961295,0.62654568,877.02,875.63,1.365]
[1757305961495,0.62654568,877.01,875.63,1.365]
[1757305961699,0.62654568,877.0,875.63,1.365]
[1757305961896,0.62654568,876.99,875.63,1.365]
[1757305962096,0.62654568,876.98,875.63,1.365]
[1757305962300,0.62654568,876.97,875.63,1.365]
[1757305962501,0.62654568,876.96,875.63,1.365]
[1757305962699,0.62654568,876.95,875.63,1.365]
[1757305962897,0.62654568,876.94,875.63,1.365]
[1757305963099,0.62654568,876.93,875.63,1.365]
[1757305963297,0.62654568,876.92,875.63,1.365]
[1757305963498,0.62654568,876.91,875.63,1.365]
[1757305963706,2.54158261,878.15,875.63,1.365]
[1757305963707,0.62654568,876.9,875.63,1.365]
[1757305963902,0.62654568,876.89,875.63,1.365]
[1757305964202,0.62654568,876.88,875.63,1.365]
[1757305964400,0.62654568,876.87,875.63,1.365]
[1757305964601,0.62654568,876.86,875.63,1.365]
[1757305964802,0.62654568,876.85,875.63,1.365]
[1757305965099,0.62654568,876.84,875.63,1.365]
[1757305965299,0.62654568,876.83,875.63,1.365]
[1757305965602,0.62654568,876.82,875.63,1.365]
[1757305965803,0.62654568,876.81,875.63,1.365]
[1757305966002,1.01288209,877.09,875.63,1.365]
[1757305966200,0.62649381,877.08,875.63,1.365]
[1757305966402,0.62649381,877.07,875.63,1.365]
[1757305966600,1.01288209,877.05,875.63,1.365]
[1757305966798,0.62649381,877.04,875.63,1.365]
[1757305966997,0.62649381,877.03,875.63,1.365]
[1757305967200,0.62649381,877.02,875.63,1.365]
[1757305967400,0.62649381,877.01,875.63,1.365]
[1757305967601,1.01288209,877.05,875.63,1.365]
[1757305967602,0.62649381,877.0,875.63,1.365]
[1757305967802,0.62649381,876.99,875.63,1.365]
[1757305968105,0.62649381,876.98,875.63,1.365]
[1757305968303,0.62649381,876.97,875.63,1.365]
[1757305968502,0.62649381,876.96,875.63,1.365]
[1757305968706,0.62649381,876.95,875.63,1.365]
[1757305968908,0.62649381,876.94,875.63,1.365]
[1757305969104,1.51916436,877.23,875.63,1.365]
[1757305969105,0.62649381,876.93,875.63,1.365]
[1757305969305,0.62649381,876.92,875.63,1.365]
[1757305969504,0.62649381,876.91,875.63,1.365]
[1757305969705,0.62649381,876.9,875.63,1.365]
[1757305970009,0.62649381,876.89,875.63,1.365]
[1757305970308,0.62649381,876.88,875.63,1.365]
[1757305970509,0.62649381,876.87,875.63,1.365]
[1757305970710,0.62649381,876.86,875.63,1.365]
[1757305970906,0.62649381,876.85,875.63,1.365]
[1757305971206,0.62649381,876.84,875.63,1.365]
[1757305971407,0.62649381,876.83,875.63,1.365]
[1757305971610,0.62649381,876.82,875.63,1.365]
[1757305971911,0.56384443,876.81,875.63,1.365]
[1757305972106,1.01288209,877.01,875.63,1.365]
[1757305972510,1.01288209,877.06,875.63,1.365]
[1757305974611,1.01288209,877.07,875.63,1.365]
[1757305975508,1.01288209,877.06,875.63,1.365]
[1757305975912,1.01288209,877.05,875.64,1.51817796]
[1757305976412,1.01288209,877.05,875.65,1.51817796]
[1757305977012,1.01288209,877.04,875.65,1.51817796]
[1757305977215,1.01288209,877.04,875.66,1.51817796]
[1757305978017,1.01288209,877.03,875.67,1.51817796]
[1757305978217,1.01288209,877.03,875.68,1.51817796]
[1757305978512,1.01288209,877.04,875.68,1.51817796]
[1757305979415,1.01288209,877.04,875.69,1.51817796]
[1757305979617,1.01288209,877.03,875.7,1.51817796]
[1757305979914,1.01288209,877.06,875.66,1.51817796]
[1757305981218,1.01288209,877.06,875.67,1.51817796]
[1757305982218,1.01288209,877.05,875.68,1.51817796]
[1757305982423,1.01288209,876.98,875.63,1.365]
[1757305982624,1.01288209,876.99,875.63,1.365]
[1757305983120,1.01288209,876.98,875.63,1.365]
[1757305983720,0.62622562,876.97,875.63,1.365]
[1757305983926,0.62622562,876.96,875.63,1.365]
[1757305984224,0.62622562,876.95,875.63,1.365]
[1757305984423,0.62622562,876.94,875.63,1.365]
[1757305984725,0.62622562,876.93,875.63,1.365]
[1757305984922,0.56360306,876.92,875.63,1.365]
[1757305985126,1.01288209,877.02,875.63,1.365]
[1757305985828,1.01288209,877.01,875.63,1.365]
[1757305987232,1.01288209,877.0,875.63,1.365]
[1757305988329,1.01288209,876.99,875.63,1.365]
[1757305989135,1.01288209,876.98,875.63,1.365]
[1757305989833,1.01288209,876.97,875.63,1.365]
[1757305990334,1.01288209,876.96,875.63,1.365]
[1757305991132,1.01288209,876.95,875.63,2.88317796]
[1757305991431,1.01288209,876.95,875.64,1.51817796]
[1757305991636,1.01288209,876.97,875.63,1.365]
[1757305991836,1.01288209,877.27,875.63,1.365]
[1757305992033,1.01288209,877.36,875.63,1.365]
[1757305992236,1.01288209,877.35,875.63,1.365]
[1757305992437,1.01288209,877.36,875.63,1.365]
[1757305993236,1.01288209,877.35,875.63,1.365]
[1757305993437,1.01288209,877.36,875.63,1.365]
[1757305994235,1.01288209,877.35,875.63,1.365]
[1757305995039,1.01288209,877.21,875.63,1.365]
[1757305995242,1.01288209,877.2,875.63,1.365]
[1757305995938,2.54158261,878.4,875.63,1.365]
[1757305995939,1.01288209,877.21,875.63,1.365]
[1757305996139,1.01288209,877.2,875.63,1.365]
[1757305996937,0.62728922,877.19,875.63,1.365]
[1757305997139,0.62728922,877.18,875.63,1.365]
[1757305997341,0.62728922,877.17,875.63,1.365]
[1757305997542,0.62728922,877.16,875.63,1.365]
[1757305997742,0.62728922,877.15,875.63,1.365]
[1757305998036,0.62728922,877.14,875.63,1.365]
[1757305998238,0.62728922,877.13,875.63,1.365]
[1757305998441,0.62728922,877.12,875.63,1.365]
[1757305998643,0.62728922,877.11,875.63,1.365]
[1757305998942,0.62728922,877.1,875.63,1.365]
[1757305999139,0.62728922,877.09,875.63,1.365]
[1757305999344,0.62728922,877.08,875.63,1.365]
[1757305999546,0.62728922,877.07,875.63,1.365]
[1757305999746,0.62728922,877.06,875.63,1.365]
[1757306000045,0.62728922,877.05,875.63,1.365]
[1757306000243,0.62728922,877.04,875.63,1.365]
[1757306000442,0.62728922,877.03,875.63,1.365]
[1757306000740,0.62728922,877.02,875.63,1.365]
[1757306001044,1.01288209,877.17,875.63,1.365]
[1757306001045,0.62728922,877.01,875.63,1.365]
[1757306001344,0.62728922,877.0,875.63,1.365]
[1757306001540,0.62728922,876.99,875.63,1.365]
[1757306001741,0.62728922,876.98,875.7,1.51817796]
[1757306001945,0.62728922,876.97,875.7,1.51817796]
[1757306002145,0.62728922,876.96,875.7,1.51817796]
[1757306002446,0.62728922,876.95,875.68,1.51817796]
[1757306002741,0.62728922,876.94,875.68,1.51817796]
[1757306002946,0.62728922,876.93,875.69,1.51817796]
[1757306003245,0.62728922,876.92,875.68,1.51817796]
[1757306003442,0.62728922,876.91,875.69,1.51817796]
[1757306003648,1.01288209,877.08,875.69,1.51817796]
[1757306003844,0.62773143,877.07,875.69,1.51817796]
[1757306004045,0.62773143,877.06,875.69,1.51817796]
[1757306004346,0.62773143,877.05,875.69,1.51817796]
[1757306004647,0.62773143,877.04,875.69,1.51817796]
[1757306004945,0.62773143,877.03,875.69,1.51817796]
[1757306005242,0.62773143,877.02,875.69,1.51817796]
[1757306005441,0.62773143,877.01,875.69,1.51817796]
[1757306005745,0.62773143,877.0,875.69,1.51817796]
[1757306005944,0.62773143,876.99,875.7,1.51817796]
[1757306006143,1.51916436,877.27,875.7,1.51817796]
[1757306006144,0.62773143,876.98,875.7,1.51817796]
[1757306006341,0.62773143,876.97,875.7,1.51817796]
[1757306006642,0.62773143,876.96,875.7,1.51817796]
[1757306006946,0.62773143,876.95,875.7,1.51817796]
[1757306007146,0.62773143,876.94,875.7,1.51817796]
[1757306007446,0.62773143,876.94,875.63,1.365]
[1757306007447,0.62773143,876.93,875.74,1.51817796]
[1757306007742,0.62773143,876.92,875.74,1.51817796]
[1757306007947,1.01288209,877.05,875.74,1.51817796]
[1757306008143,0.62771947,877.04,875.74,1.51817796]
[1757306008342,0.62771947,877.03,875.75,1.51817796]
[1757306008543,0.62771947,877.02,875.75,1.51817796]
[1757306008848,0.62771947,877.01,875.75,1.51817796]
[1757306009042,0.62771947,877.0,875.75,1.51817796]
[1757306009245,0.62771947,876.99,875.75,1.51817796]
[1757306009444,0.62771947,876.98,875.75,1.51817796]
[1757306009643,0.62771947,876.97,875.75,1.51817796]
[1757306009845,0.62771947,876.96,875.75,1.51817796]
[1757306010146,0.62771947,876.95,875.75,1.51817796]
[1757306010345,0.62771947,876.94,875.75,1.51817796]
[1757306010546,0.62771947,876.93,875.74,1.51817796]
[1757306010745,0.62771947,876.92,875.74,1.51817796]
[1757306010948,1.01288209,877.05,875.74,1.51817796]
[1757306011344,2.54158261,878.01,875.62,0.19823751]
[1757306011345,1.01288209,876.98,875.8,1.51817796]
[1757306011750,1.01288209,877.0,875.81,1.382]
[1757306012553,1.01288209,877.02,875.81,1.382]
[1757306013452,1.01288209,877.03,875.81,2.90017796]
[1757306013650,1.01288209,877.02,875.82,1.51817796]
[1757306015157,1.01288209,877.01,875.83,1.51817796]
[1757306015354,1.01288209,877.0,875.83,1.51817796]
[1757306016858,0.91159389,877.0,875.83,1.51817796]
[1757306017954,1.51916436,877.16,875.84,1.51817796]
[1757306018257,1.51916436,877.15,875.85,1.51817796]
[1757306018453,1.51916436,877.22,875.81,1.382]
[1757306018854,1.51916436,877.28,875.81,1.382]
[1757306019957,1.51916436,877.29,875.81,1.382]
[1757306020359,1.51916436,877.28,875.81,1.382]
[1757306021558,1.51916436,877.27,875.81,1.382]
[1757306021858,1.51916436,877.29,875.81,1.382]
[1757306022358,2.54158261,878.1,875.81,1.382]
[1757306022359,1.51916436,877.34,875.81,1.382]
[1757306022856,0.62598055,877.33,875.81,1.382]
[1757306023061,0.62598055,877.32,875.81,1.382]
[1757306023264,0.62598055,877.31,875.81,1.382]
[1757306023459,0.62598055,877.3,875.81,1.382]
[1757306023658,0.62598055,877.29,875.81,1.382]
[1757306023857,0.62598055,877.28,875.81,1.382]
[1757306024157,0.62598055,877.27,875.81,1.382]
[1757306024361,0.62598055,877.26,875.81,1.382]
[1757306024562,0.62598055,877.25,875.81,1.382]
[1757306024762,0.62598055,877.24,875.81,1.382]
[1757306025061,0.62598055,877.23,875.81,1.382]
[1757306025356,0.62598055,877.22,875.81,1.382]
[1757306025558,0.62598055,877.21,875.81,1.382]
[1757306025757,0.62598055,877.2,875.81,1.382]
[1757306025956,0.62598055,877.19,875.81,1.382]
[1757306026158,0.62598055,877.18,875.81,1.382]
[1757306026362,0.62598055,877.17,875.81,1.382]
[1757306026560,0.62598055,877.16,875.81,1.382]
[1757306026760,0.62598055,877.15,875.81,1.382]
[1757306026963,0.62598055,877.14,875.81,1.382]
[1757306027261,0.62598055,877.13,875.81,1.382]
[1757306027460,0.62598055,877.12,875.81,1.382]
[1757306027659,0.62598055,877.11,875.81,1.382]
[1757306027960,0.62598055,877.1,875.81,1.382]
[1757306028164,0.62598055,877.09,875.81,1.382]
[1757306028365,0.62598055,877.08,875.81,1.382]
[1757306028564,0.62598055,877.07,875.84,1.51817796]
[1757306028759,0.62598055,877.06,875.84,1.51817796]
[1757306029064,0.62598055,877.05,875.81,1.382]
[1757306029360,0.62598055,877.04,875.81,1.382]
[1757306029558,0.62598055,877.03,875.81,1.382]
[1757306029760,0.62598055,877.02,875.81,1.382]
[1757306029958,0.62598055,877.01,875.81,1.382]
[1757306030158,0.62598055,877.0,875.81,1.382]
[1757306030361,0.62598055,876.99,875.81,1.382]
[1757306030561,0.62598055,876.98,875.81,1.382]
[1757306030762,0.62598055,876.97,875.81,1.382]
[1757306031062,0.62598055,876.96,875.81,1.382]
[1757306031266,0.62598055,876.95,875.81,1.382]
[1757306031562,0.62598055,876.94,875.81,1.382]
[1757306031760,0.62598055,876.93,875.81,1.382]
[1757306031962,1.51916436,877.48,875.81,1.382]
[1757306031963,0.62598055,876.92,875.81,1.382]
[1757306032165,0.62598055,876.91,875.81,1.382]
[1757306032465,1.51916436,877.42,875.81,1.382]
[1757306032762,0.62606237,877.41,875.81,1.382]
[1757306032961,0.62606237,877.4,875.81,1.382]
[1757306033160,0.62606237,877.39,875.81,1.382]
[1757306033362,0.62606237,877.38,875.81,1.382]
[1757306033659,0.62606237,877.37,875.81,1.382]
[1757306033864,0.62606237,877.36,875.81,1.382]
[1757306034062,0.62606237,877.35,875.81,1.382]
[1757306034263,0.62606237,877.34,875.81,1.382]
[1757306034461,0.62606237,877.33,875.81,1.382]
[1757306034665,0.62606237,877.32,875.81,1.382]
[1757306034965,0.62606237,877.31,875.81,1.382]
[1757306035166,0.62606237,877.3,875.81,1.382]
[1757306035366,0.62606237,877.29,875.81,1.382]
[1757306035667,0.62606237,877.28,875.81,1.382]
[1757306035965,0.62606237,877.27,875.81,1.382]
[1757306036167,0.62606237,877.26,875.81,1.382]
[1757306036366,0.62606237,877.25,875.81,1.382]
[1757306036562,0.62606237,877.24,875.81,1.382]
[1757306036866,0.62606237,877.23,875.81,1.382]
[1757306037067,0.62606237,877.22,875.81,1.382]
[1757306037367,0.62606237,877.21,875.81,1.382]
[1757306037563,0.62606237,877.2,875.81,1.382]
[1757306037764,0.62606237,877.19,875.81,1.382]
[1757306037968,0.62606237,877.18,875.81,1.382]
[1757306038164,0.62606237,877.17,875.81,1.382]
[1757306038368,0.62606237,877.16,875.81,1.382]
[1757306038569,0.62606237,877.15,875.81,1.382]
[1757306038870,0.62606237,877.14,875.81,1.382]
[1757306039069,2.54158261,878.58,875.81,1.382]
[1757306039070,0.62606237,877.13,875.81,1.382]
[1757306039366,0.62606237,877.12,875.81,1.382]
[1757306039570,0.62606237,877.11,875.81,1.382]
[1757306039766,0.62606237,877.1,875.81,1.382]
[1757306039965,0.62606237,877.09,875.81,1.382]
[1757306040164,0.62606237,877.08,875.81,1.382]
[1757306040365,0.62606237,877.07,875.81,1.382]
[1757306040563,0.62606237,877.06,875.81,1.382]
[1757306040766,0.62606237,877.05,875.81,1.382]
[1757306040965,1.51916436,877.43,875.81,1.382]
[1757306040966,0.62606237,877.04,875.81,1.382]
[1757306041165,0.62606237,877.03,875.81,1.382]
[1757306041371,0.62606237,877.02,875.81,1.382]
[1757306041664,0.62606237,877.01,875.81,1.382]
[1757306041870,0.62606237,877.0,875.81,1.382]
[1757306042066,0.62606237,876.99,875.81,1.382]
[1757306042270,0.62606237,876.98,875.81,1.382]
[1757306042573,0.62606237,876.97,875.81,1.382]
[1757306042873,0.62606237,876.96,875.81,1.382]
[1757306043073,0.62606237,876.95,875.81,1.382]
[1757306043271,0.62606237,876.94,875.81,1.382]
[1757306043474,0.62606237,876.93,875.81,1.382]
[1757306043670,0.62606237,876.92,875.81,1.382]
[1757306043873,0.62606237,876.91,875.81,1.382]